fUSD/lending_fUSD_20250517
["ID","MTS","AMOUNT","RATE_DAILY","PERIOD"]
[361316838,1747462051235,-2126.39142791,0.00015447,2]
[361316839,1747462162271,450.0,0.0001,2]
[361316840,1747462163297,500.0,0.00012,2]
[361316872,1747462232800,-500.0,0.00015104,2]
[361316874,1747462232810,-190.56,0.00015148,2]
[361316876,1747462232819,-1200.0,0.00015446,2]
[361316878,1747462232828,-265.12293364,0.00015447,2]
[361316897,1747462233000,-1090.42243828,0.00015447,2]
[361316900,1747462233011,-757.55051937,0.00015447,2]
[361316902,1747462233023,-3240.69434348,0.00015447,2]
[361316910,1747462233096,-478.31588386,0.00015447,2]
[361316912,1747462233108,-3643.30245346,0.00015447,2]
[361316915,1747462233119,-170.66,0.00015451,2]
[361316916,1747462233128,-152.14,0.00015456,2]
[361316918,1747462233137,-138.35874654,0.00015462,2]
[361317432,1747462238470,-166.81125346,0.00015462,2]
[361317435,1747462238479,-152.14,0.00015465,2]
[361317437,1747462238493,-1852.42,0.00015467,2]
[361317439,1747462238502,-370.91,0.00015474,2]
[361317441,1747462238512,-1500.0,0.00015474,2]
[361317443,1747462238522,-152.14,0.00015475,2]
[361317445,1747462238531,-152.14,0.00015484,2]
[361317448,1747462238540,-152.14,0.00015494,2]
[361317450,1747462238549,-152.14,0.00015504,2]
[361317453,1747462238558,-1472.03,0.00015508,2]
[361317456,1747462238568,-152.14,0.00015513,2]
[361317460,1747462238578,-152.14,0.00015523,2]
[361317462,1747462238587,-151.0,0.00015605,2]
[361317463,1747462238596,-155.0,0.00015605,2]
[361317465,1747462238605,-719.52358209,0.00015605,2]
[361317468,1747462238615,-207.4,0.00015605,2]
[361317469,1747462238624,-635.34,0.00015836,2]
[361317471,1747462238634,-156.77,0.0001594,2]
[361317473,1747462238643,-864.45616425,0.00016063,2]
[361317475,1747462238653,-4587.26863211,0.00016323,2]
[361317477,1747462238663,-4039.0,0.00016335,2]
[361317480,1747462238672,-154.0,0.00016335,2]
[361317482,1747462238682,-6827.0,0.00016335,2]
[361317483,1747462238691,-5942.0,0.00016335,2]
[361317485,1747462238700,-11009.24293343,0.00016338,2]
[361317487,1747462238709,-237.68007396,0.00016338,2]
[361317489,1747462238719,-183.5048822,0.00016352,2]
[361317491,1747462238728,-420.086,0.00016352,2]
[361317493,1747462238737,-1000.0,0.0001637,2]
[361317495,1747462238746,-895.55104274,0.0001637,2]
[361317497,1747462238756,-150.0,0.00016399,2]
[361317499,1747462238765,-100180.45814476,0.000164,2]
[361317501,1747462238775,-1104.0,0.000164,2]
[361317503,1747462238784,-292.4164603,0.00016422,2]
[361317505,1747462238793,-38436.5404788,0.00016422,2]
[361317507,1747462238802,-182.60921486,0.00016422,2]
[361317509,1747462238812,-221.94528329,0.00016422,2]
[361317511,1747462238821,-253.14616106,0.00016422,2]
[361317513,1747462238830,-151.870372,0.00016423,2]
[361317515,1747462238839,-200.0,0.00016423,2]
[361317517,1747462238848,-48648.6900927,0.00016423,2]
[361317519,1747462238858,-202.70868013,0.00016423,2]
[361317521,1747462238867,-204.2226957,0.00016423,2]
[361317523,1747462238877,-1398.6333447,0.00016423,2]
[361317525,1747462238886,-604.25912462,0.00016423,2]
[361317527,1747462238895,-6417.410425,0.00016423,2]
[361317529,1747462238904,-164.932,0.00016434,2]
[361317531,1747462238914,-218.315,0.00016434,2]
[361317533,1747462238922,-150.338,0.00016434,2]
[361317535,1747462238932,-289.353,0.00016434,2]
[361317537,1747462238941,-189.838,0.00016434,2]
[361317539,1747462238950,-296.583,0.00016434,2]
[361317541,1747462238959,-217.815,0.00016434,2]
[361317543,1747462238968,-154.919,0.00016434,2]
[361317545,1747462238977,-190.103,0.00016434,2]
[361317547,1747462238987,-198.986,0.00016434,2]
[361317549,1747462238996,-278.294,0.00016434,2]
[361317551,1747462239005,-157.304,0.00016434,2]
[361317553,1747462239014,-1307.0,0.00016434,2]
[361317555,1747462239024,-933.0,0.00016434,2]
[361317557,1747462239033,-799.0,0.00016434,2]
[361317559,1747462239042,-629.0,0.00016434,2]
[361317561,1747462239051,-553.0,0.00016434,2]
[361317563,1747462239060,-1254.0,0.00016434,2]
[361317565,1747462239070,-585.0,0.00016434,2]
[361317567,1747462239079,-1458.0,0.00016434,2]
[361317569,1747462239088,-919.0,0.00016434,2]
[361317571,1747462239097,-200.29380852,0.00016434,2]
[361317573,1747462239107,-150.0,0.00016434,2]
[361317575,1747462239116,-150.97267849,0.00016434,2]
[361317578,1747462239125,-180.22095507,0.00016434,2]
[361317579,1747462239135,-150.0,0.00016434,2]
[361317582,1747462239144,-150.40747425,0.00016434,2]
[361317584,1747462239153,-248.0,0.00016434,2]
[361317585,1747462239163,-150.0,0.00016434,2]
[361317587,1747462239172,-154.1092622,0.00016434,2]
[361317589,1747462239181,-151.0,0.00016435,2]
[361317591,1747462239190,-151.884224,0.00016435,2]
[361317593,1747462239200,-151.0,0.00016435,2]
[361317595,1747462239209,-151.0,0.00016435,2]
[361317597,1747462239218,-151.712992,0.00016436,2]
[361317599,1747462239227,-151.0,0.00016438,2]
[361317601,1747462239236,-151.0,0.00016438,2]
[361317603,1747462239246,-151.0,0.00016438,2]
[361317605,1747462239256,-296.662113,0.00016438,2]
[361317607,1747462239268,-3896.262548,0.00016438,2]
[361317609,1747462239277,-3896.262548,0.00016438,2]
[361317611,1747462239286,-3896.262548,0.00016438,2]
[361317613,1747462239295,-3896.262548,0.00016438,2]
[361317615,1747462239304,-160.852961,0.00016438,2]
[361317617,1747462239313,-160.852961,0.00016438,2]
[361317619,1747462239322,-179.493695,0.00016438,2]
[361317621,1747462239331,-14442.629272,0.00016438,2]
[361317623,1747462239340,-14442.629272,0.00016438,2]
[361317625,1747462239350,-14442.629272,0.00016438,2]
[361317627,1747462239359,-14442.629272,0.00016438,2]
[361317629,1747462239368,-6667.386635,0.00016438,2]
[361317631,1747462239377,-6667.386635,0.00016438,2]
[361317633,1747462239386,-6667.386635,0.00016438,2]
[361317635,1747462239396,-6667.386635,0.00016438,2]
[361317637,1747462239404,-151.0,0.00016438,2]
[361317639,1747462239414,-151.0,0.00016438,2]
[361317641,1747462239423,-514.0,0.00016438,2]
[361317643,1747462239432,-154.330889,0.00016438,2]
[361317645,1747462239441,-361.66701007,0.00016438,2]
[361317648,1747462239452,-200.33,0.00016438,2]
[361317650,1747462239461,-150.0,0.00016461,2]
[361317651,1747462239470,-150.0,0.00016461,2]
[361317653,1747462239479,-150.0,0.00016461,2]
[361317655,1747462239492,-500.0,0.00016468,2]
[361317657,1747462239501,-528.0,0.00016468,2]
[361317659,1747462239510,-571.0,0.00016468,2]
[361317661,1747462239519,-500.0,0.00016468,2]
[361317663,1747462239529,-500.0,0.00016468,2]
[361317665,1747462239539,-500.0,0.00016468,2]
[361317667,1747462239548,-500.0,0.00016468,2]
[361317669,1747462239558,-500.0,0.00016468,2]
[361317670,1747462239568,-500.0,0.00016468,2]
[361317671,1747462239578,-500.0,0.00016468,2]
[361317672,1747462239587,-500.0,0.00016468,2]
[361317673,1747462239596,-500.0,0.00016468,2]
[361317674,1747462239606,-500.0,0.00016468,2]
[361317675,1747462239615,-500.0,0.00016468,2]
[361317676,1747462239625,-500.0,0.00016468,2]
[361317677,1747462239635,-500.0,0.00016468,2]
[361317678,1747462239645,-500.0,0.00016468,2]
[361317679,1747462239656,-500.0,0.00016473,2]
[361317680,1747462239666,-501.64703719,0.00016473,2]
[361317681,1747462239675,-500.0,0.00016473,2]
[361317682,1747462239684,-501.06199401,0.00016473,2]
[361317683,1747462239693,-500.0,0.00016473,2]
[361317684,1747462239702,-151.0,0.00016473,2]
[361317685,1747462239711,-200.2570423,0.00016489,2]
[361317686,1747462239721,-202.74056228,0.00016489,2]
[361317687,1747462239730,-1049.53508552,0.00016499,5]
[361317688,1747462239739,-666.0,0.00016499,2]
[361317689,1747462239748,-151.0,0.000165,2]
[361317690,1747462239757,-151.0,0.000165,2]
[361317691,1747462239767,-151.0,0.000165,2]
[361317692,1747462239776,-151.0,0.000165,2]
[361317693,1747462239785,-151.0,0.000165,2]
[361317694,1747462239794,-151.0,0.000165,2]
[361317695,1747462239803,-151.0,0.000165,2]
[361317696,1747462239812,-151.0,0.000165,2]
[361317697,1747462239822,-151.0,0.000165,2]
[361317698,1747462239831,-151.0,0.000165,2]
[361317699,1747462239840,-151.0,0.000165,2]
[361317700,1747462239850,-151.0,0.000165,2]
[361317701,1747462239860,-151.0,0.000165,2]
[361317702,1747462239869,-151.0,0.000165,2]
[361317703,1747462239879,-153.089973,0.000165,2]
[361317704,1747462239888,-12251.23912486,0.00016542,2]
[361317705,1747462239898,-200.0,0.00016587,2]
[361317706,1747462239908,-151.0,0.000166,2]
[361317707,1747462239918,-1000.0,0.000166,2]
[361317708,1747462239928,-527.82620728,0.00016697,2]
[361317709,1747462239938,-2000.0,0.000167,2]
[361317710,1747462239947,-151.0,0.0001671,2]
[361317711,1747462239956,-151.0,0.0001671,2]
[361317712,1747462239966,-151.337283,0.0001671,2]
[361317713,1747462239976,-151.0,0.0001671,2]
[361317714,1747462239986,-151.0,0.0001671,2]
[361317715,1747462239995,-347.661942,0.0001671,2]
[361317716,1747462240005,-297.393714,0.0001671,2]
[361317717,1747462240015,-297.393714,0.0001671,2]
[361317718,1747462240024,-151.0,0.0001671,2]
[361317719,1747462240034,-480.805847,0.0001671,2]
[361317720,1747462240043,-480.805847,0.0001671,2]
[361317721,1747462240052,-496.125381,0.0001671,2]
[361317722,1747462240061,-496.125381,0.0001671,2]
[361317723,1747462240070,-151.572055,0.0001671,2]
[361317724,1747462240079,-307.98182187,0.0001671,2]
[361317725,1747462240088,-10503.99817645,0.00016712,2]
[361317726,1747462240097,-679.7799966,0.00016712,2]
[361317727,1747462240107,-151.592297,0.00016712,2]
[361317728,1747462240116,-151.0,0.00016712,2]
[361317729,1747462240125,-151.0,0.00016712,2]
[361317730,1747462240134,-151.0,0.00016712,2]
[361317731,1747462240143,-153.525672,0.00016712,2]
[361317732,1747462240153,-151.0,0.00016712,2]
[361317733,1747462240162,-172.841881,0.00016712,2]
[361317734,1747462240172,-151.0,0.00016712,2]
[361317735,1747462240181,-245.033856,0.00016712,2]
[361317736,1747462240191,-151.0,0.00016712,2]
[361317737,1747462240200,-151.0,0.00016712,2]
[361317738,1747462240209,-151.0,0.00016712,2]
[361317739,1747462240218,-151.0,0.00016712,2]
[361317740,1747462240228,-154.846676,0.00016712,2]
[361317741,1747462240237,-151.0,0.00016712,2]
[361317742,1747462240246,-151.0,0.00016712,2]
[361317743,1747462240255,-862.413982,0.00016712,2]
[361317744,1747462240264,-862.413982,0.00016712,2]
[361317745,1747462240273,-154.581484,0.00016712,2]
[361317746,1747462240283,-219.068117,0.00016712,2]
[361317747,1747462240292,-219.068117,0.00016712,2]
[361317748,1747462240300,-7804.745821,0.00016712,2]
[361317749,1747462240309,-7804.745821,0.00016712,2]
[361317750,1747462240318,-961.514679,0.00016712,2]
[361317751,1747462240327,-961.514679,0.00016712,2]
[361317752,1747462240336,-151.0,0.00016712,2]
[361317753,1747462240345,-151.0,0.00016712,2]
[361317754,1747462240354,-178.82,0.00016712,2]
[361317755,1747462240364,-200.0,0.00016753,2]
[361317756,1747462240373,-1000.0,0.00016783,2]
[361317757,1747462240382,-151.0,0.00016783,2]
[361317758,1747462240391,-283.507931,0.00016783,2]
[361317759,1747462240400,-283.507931,0.00016783,2]
[361317760,1747462240409,-151.0,0.00016783,2]
[361317761,1747462240418,-151.0,0.00016795,2]
[361317762,1747462240427,-151.0,0.00016795,2]
[361317763,1747462240436,-151.0,0.00016795,2]
[361317764,1747462240445,-151.0,0.00016795,2]
[361317765,1747462240455,-1501.31648955,0.00016795,2]
[361317766,1747462240464,-15679.446368,0.0001681,2]
[361317767,1747462240472,-151.0,0.0001681,2]
[361317768,1747462240482,-156.77,0.00016817,2]
[361317769,1747462240494,-348.81513838,0.000169,2]
[361317770,1747462240503,-190.48691295,0.0001692,2]
[361317771,1747462240513,-9459.15090952,0.0001692,2]
[361317772,1747462240609,-381.48,0.00016335,2]
[361317773,1747462241263,-766.52,0.00016335,2]
[361317774,1747462241276,-4665.1360771,0.0001692,2]
[361317775,1747462241289,-4137.2,0.0001692,2]
[361317776,1747462241357,-907.07249213,0.0001692,2]
[361317782,1747462244969,-204.2226957,0.0001671,2]
[361317783,1747462244979,-109.48046472,0.00016712,2]
[361317784,1747462245050,-93.22821542,0.00016712,2]
[361317785,1747462245060,-127650.76715716,0.0001692,2]
[361317786,1747462245070,-151.5752,0.0001692,2]
[361317787,1747462245079,-131.42942742,0.0001692,2]
[361317788,1747462245093,-19.57057258,0.0001692,2]
[361317789,1747462245103,-151.0,0.0001692,2]
[361317790,1747462245112,-151.0,0.0001692,2]
[361317791,1747462245121,-61.73106767,0.0001692,2]
[361317792,1747462245135,-285.93087433,0.0001692,2]
[361317793,1747462245145,-297.393714,0.0001692,2]
[361317794,1747462245155,-66.50875343,0.0001692,2]
[361317796,1747462246203,-276.0443033,0.00016422,2]
[361317797,1747462246212,-230.88496057,0.0001692,2]
[361317798,1747462246221,-151.0,0.0001692,2]
[361317799,1747462246231,-480.805847,0.0001692,2]
[361317800,1747462246240,-480.805847,0.0001692,2]
[361317801,1747462246250,-496.125381,0.0001692,2]
[361317802,1747462246259,-496.125381,0.0001692,2]
[361317803,1747462246268,-3890.11148799,0.0001692,2]
[361317804,1747462246370,-413.69196566,0.0001692,2]
[361317805,1747462246390,-6441.19654635,0.0001692,2]
[361317806,1747462246399,-200.0,0.00016921,2]
[361317807,1747462246409,-156.587,0.00016974,2]
[361317808,1747462246419,-985.0,0.00016982,2]
[361317809,1747462246428,-2557.21645364,0.00016985,2]
[361317810,1747462246440,-3242.78354636,0.00016985,2]
[361317811,1747462246449,-151.0,0.00016985,2]
[361317812,1747462246459,-151.0,0.00016985,2]
[361317813,1747462246468,-151.0,0.00016985,2]
[361317814,1747462246477,-151.311892,0.00016985,2]
[361317815,1747462246487,-151.0,0.00016985,2]
[361317816,1747462246498,-151.0,0.00016985,2]
[361317817,1747462246507,-151.0,0.00016985,2]
[361317818,1747462246516,-151.0,0.00016985,2]
[361317819,1747462246526,-151.0,0.00016985,2]
[361317820,1747462246535,-151.0,0.00016985,2]
[361317821,1747462246544,-151.0,0.00016985,2]
[361317822,1747462246553,-862.413982,0.00016985,2]
[361317823,1747462246562,-862.413982,0.00016985,2]
[361317824,1747462246572,-219.068117,0.00016985,2]
[361317825,1747462246581,-219.068117,0.00016985,2]
[361317826,1747462246590,-7804.745821,0.00016985,2]
[361317827,1747462246599,-7804.745821,0.00016985,2]
[361317828,1747462246608,-961.514679,0.00016985,2]
[361317829,1747462246617,-961.514679,0.00016985,2]
[361317830,1747462246627,-151.0,0.00016985,2]
[361317831,1747462246636,-200.0,0.00016991,2]
[361317832,1747462246645,-1000.0,0.00017,2]
[361317833,1747462246653,-1000.0,0.00017021,2]
[361317834,1747462246662,-1000.0,0.00017021,2]
[361317835,1747462246671,-1000.0,0.00017021,2]
[361317836,1747462246680,-200.0,0.0001709,2]
[361317837,1747462246689,-150.0,0.00017098,2]
[361317838,1747462246699,-400.0,0.0001726,2]
[361317839,1747462246708,-151.0,0.0001726,2]
[361317840,1747462246717,-151.648087,0.00017265,2]
[361317841,1747462246726,-151.0,0.00017265,2]
[361317842,1747462246735,-4587.26863203,0.00017266,2]
[361317843,1747462246744,-158.977633,0.00017275,2]
[361317844,1747462246753,-283.507931,0.00017275,2]
[361317845,1747462246762,-283.507931,0.00017275,2]
[361317846,1747462246771,-11009.24293335,0.00017279,2]
[361317847,1747462246782,-151.0,0.00017287,2]
[361317848,1747462246791,-151.0,0.0001731,2]
[361317849,1747462246800,-151.0,0.00017397,2]
[361317850,1747462246809,-370.91,0.00017408,2]
[361317851,1747462246818,-151.0,0.00017444,2]
[361317852,1747462246827,-223.698495,0.00017444,2]
[361317853,1747462246836,-153.783987,0.00017444,2]
[361317854,1747462246845,-347.661942,0.00017444,2]
[361317855,1747462246854,-297.393714,0.00017444,2]
[361317856,1747462246863,-297.393714,0.00017444,2]
[361317857,1747462246874,-480.805847,0.00017444,2]
[361317858,1747462246884,-480.805847,0.00017444,2]
[361317859,1747462246893,-151.0,0.00017444,2]
[361317860,1747462246902,-151.0,0.00017444,2]
[361317861,1747462246912,-151.0,0.00017491,2]
[361317862,1747462246921,-1000.0,0.000175,2]
[361317863,1747462246930,-151.0,0.0001752,2]
[361317864,1747462246941,-151.0,0.00017522,2]
[361317865,1747462246950,-400.0,0.00017534,2]
[361317866,1747462246959,-151.0,0.00017534,2]
[361317867,1747462246968,-496.125381,0.00017534,2]
[361317868,1747462246978,-496.125381,0.00017534,2]
[361317869,1747462246987,-151.0,0.00017534,2]
[361317870,1747462246996,-176.285102,0.00017534,2]
[361317871,1747462247006,-151.0,0.00017534,2]
[361317872,1747462247014,-151.0,0.00017534,2]
[361317873,1747462247024,-151.0,0.00017534,2]
[361317874,1747462247033,-660.33,0.00017536,2]
[361317875,1747462247042,-151.0,0.00017568,2]
[361317876,1747462247052,-1500.0,0.00017568,2]
[361317877,1747462247062,-1500.0,0.00017568,2]
[361317878,1747462247071,-1254.66364118,0.00017568,2]
[361317879,1747462247081,-151.0,0.00017648,2]
[361317880,1747462247090,-862.413982,0.00017648,2]
[361317881,1747462247099,-862.413982,0.00017648,2]
[361317882,1747462247108,-219.068117,0.00017648,2]
[361317883,1747462247118,-219.068117,0.00017648,2]
[361317884,1747462247127,-7804.745821,0.00017648,2]
[361317885,1747462247136,-7804.745821,0.00017648,2]
[361317886,1747462247146,-961.514679,0.00017648,2]
[361317887,1747462247155,-961.514679,0.00017648,2]
[361317888,1747462247165,-151.0,0.00017648,2]
[361317889,1747462247174,-154.0,0.00017648,2]
[361317890,1747462247183,-1186.0,0.00017648,2]
[361317891,1747462247192,-1186.0,0.00017648,2]
[361317892,1747462247202,-156.0,0.00017648,2]
[361317893,1747462247211,-1186.0,0.00017648,2]
[361317894,1747462247220,-156.0,0.00017648,2]
[361317895,1747462247229,-1186.0,0.00017648,2]
[361317896,1747462247239,-182.74421356,0.00017648,2]
[361317897,1747462247247,-1186.0,0.00017648,2]
[361317898,1747462247256,-1186.0,0.00017648,2]
[361317899,1747462247265,-1186.0,0.00017648,2]
[361317900,1747462247274,-1186.0,0.00017648,2]
[361317901,1747462247283,-1186.0,0.00017648,2]
[361317902,1747462247292,-1186.0,0.00017648,2]
[361317903,1747462247301,-1186.0,0.00017648,2]
[361317904,1747462247310,-1186.0,0.00017648,2]
[361317905,1747462247319,-1186.0,0.00017648,2]
[361317906,1747462247328,-1186.0,0.00017648,2]
[361317907,1747462247337,-786.30973703,0.00017648,2]
[361317908,1747462247346,-156.77,0.00017694,2]
[361317909,1747462247355,-348.81513824,0.00017797,2]
[361317910,1747462247364,-666.0,0.00017807,2]
[361317911,1747462247373,-400.0,0.00017808,2]
[361317912,1747462247382,-151.0,0.00017808,2]
[361317913,1747462247391,-151.0,0.00017808,2]
[361317914,1747462247401,-151.0,0.00017808,2]
[361317915,1747462247410,-151.0,0.00017808,2]
[361317916,1747462247419,-151.455846,0.00017808,2]
[361317917,1747462247428,-151.0,0.00017808,2]
[361317918,1747462247437,-151.0,0.00017808,2]
[361317919,1747462247446,-151.0,0.00017808,2]
[361317920,1747462247455,-151.0,0.00017808,2]
[361317921,1747462247466,-151.0,0.00017808,2]
[361317922,1747462247476,-283.507931,0.00017808,2]
[361317923,1747462247485,-283.507931,0.00017808,2]
[361317924,1747462247498,-700.0,0.000179,6]
[361317925,1747462247507,-1000.0,0.00018,2]
[361317926,1747462247516,-391.04423546,0.00018,5]
[361317927,1747462247525,-151.0,0.00018,2]
[361317928,1747462247535,-347.661942,0.00018,2]
[361317929,1747462247545,-297.393714,0.00018,2]
[361317930,1747462247554,-297.393714,0.00018,2]
[361317931,1747462247565,-151.0,0.00018,2]
[361317932,1747462247574,-480.805847,0.00018,2]
[361317933,1747462247583,-480.805847,0.00018,2]
[361317934,1747462247593,-151.0,0.00018,2]
[361317935,1747462247602,-151.0,0.00018,2]
[361317936,1747462247611,-496.125381,0.00018,2]
[361317937,1747462247620,-496.125381,0.00018,2]
[361317938,1747462247629,-151.0,0.00018,2]
[361317939,1747462247639,-151.476863,0.00018,2]
[361317940,1747462247649,-151.0,0.00018,2]
[361317941,1747462247659,-151.0,0.00018,2]
[361317942,1747462247669,-151.0,0.00018,2]
[361317943,1747462247678,-3567.43784489,0.00018,2]
[361317944,1747462247738,-20492.82623877,0.00018,2]
[361317945,1747462247748,-181.17376123,0.00018,2]
[361317946,1747462247777,-681.24022077,0.00018,2]
[361317947,1747462247786,-108.02977923,0.00018,2]
[361317948,1747462247797,-754.38420277,0.00018,2]
[361317949,1747462247806,-219.068117,0.00018,2]
[361317950,1747462247814,-200.343947,0.00018,2]
[361317951,1747462247823,-219.068117,0.00018,2]
[361317952,1747462247832,-7804.745821,0.00018,2]
[361317953,1747462247844,-7804.745821,0.00018,2]
[361317954,1747462248113,-961.514679,0.00018,2]
[361317955,1747462248123,-961.514679,0.00018,2]
[361317956,1747462248132,-153.528363,0.00018,2]
[361317957,1747462248141,-151.0,0.00018,2]
[361317958,1747462248151,-223.44461086,0.00018052,2]
[361317959,1747462248160,-400.0,0.00018082,2]
[361317960,1747462248169,-635.34,0.000181,2]
[361317961,1747462248179,-151.0,0.00018116,2]
[361317962,1747462248189,-2001.61747081,0.00018116,2]
[361317963,1747462248198,-2000.0,0.00018116,2]
[361317964,1747462248207,-3782.6713,0.00018152,2]
[361317965,1747462248216,-151.0,0.00018208,2]
[361317966,1747462248225,-246.730996,0.00018208,2]
[361317967,1747462248234,-3548.30375289,0.00018209,2]
[361317968,1747462248245,-1038.96487914,0.00018209,2]
[361317969,1747462248254,-10328.75758102,0.0001822,2]
[361317970,1747462281279,-278.129554,0.00016468,2]
[361317971,1747462281301,-151.0,0.00016468,2]
[361317972,1747462291347,1065.9,0.00012,2]
[361317973,1747462292624,-127.129554,0.00016468,2]
[361317974,1747462292647,-151.0,0.00016712,2]
[361317975,1747462292669,-278.129554,0.00016712,2]
[361317976,1747462292691,-278.129554,0.00016712,2]
[361317977,1747462292712,-278.129554,0.00016985,2]
[361317978,1747462292734,-278.129554,0.00016985,2]
[361317979,1747462314024,-151.0,0.00017714,2]
[361317980,1747462314046,-151.0,0.00017928,2]
[361317981,1747462314068,-278.129554,0.00018,2]
[361317982,1747462314090,-278.129554,0.00018,2]
[361317983,1747462314111,-237.0,0.00018,2]
[361317984,1747462333218,-995.9,0.00018,2]
[361317985,1747462342187,551.14,0.00026431,120]
[361317986,1747462348592,-551.14,0.00017621,2]
[361317987,1747462413050,-1158.57,0.0001752,2]
[361317988,1747462413074,-150.0,0.00017615,2]
[361317989,1747462413095,-150.0,0.00017643,2]
[361317990,1747462413117,-150.54108098,0.00017667,2]
[361317991,1747462413140,-150.0,0.00017685,2]
[361317992,1747462413163,-150.0,0.00017779,2]
[361317993,1747462413186,-150.0,0.00017781,2]
[361317994,1747462413209,-1000.0,0.00017825,2]
[361317995,1747462413232,-150.0,0.00017855,2]
[361317996,1747462413256,-1000.0,0.00017867,2]
[361317997,1747462413278,-1000.0,0.00017909,2]
[361317998,1747462413300,-1000.0,0.0001792,2]
[361317999,1747462413322,-150.0,0.00017942,2]
[361318000,1747462413345,-1000.0,0.0001795,2]
[361318001,1747462413367,-1000.0,0.00017963,2]
[361318002,1747462413390,-1000.0,0.00017978,2]
[361318003,1747462413413,-375.0,0.00018,2]
[361318004,1747462413435,-765.0,0.00018,2]
[361318005,1747462443125,-150.0,0.00017891,2]
[361318006,1747462443151,-150.0,0.00017898,2]
[361318007,1747462443175,-150.0,0.00017905,2]
[361318008,1747462443204,-150.0,0.00017911,2]
[361318009,1747462443228,-150.0,0.00017968,2]
[361318010,1747462493902,-258.49,0.00013699,2]
[361318011,1747462503304,-624.6,0.00015501,2]
[361318012,1747462526430,-932.968,0.00016612,2]
[361318013,1747462532653,-1307.0,0.00016612,2]
[361318014,1747462540969,-1148.0,0.00016612,2]
[361318015,1747462540992,-5942.0,0.00016612,2]
[361318016,1747462816369,530.13601689,0.0001,2]
[361318017,1747462823501,309.00538244,0.00027,120]
[361318018,1747463127463,2737.84697216,0.00011,2]
[361318019,1747463146147,-101893.30726291,0.00014,2]
[361318020,1747463243097,-300.0,0.00013999,2]
[361318021,1747463243124,-150.22641699,0.00014,2]
[361318022,1747463244274,-2971.77404445,0.00014,2]
[361318023,1747463348177,-300.0,0.00013999,2]
[361318024,1747463348201,-139296.24400369,0.00014,2]
[361318025,1747463360147,-1144.15977643,0.00014,2]
[361318026,1747463361406,-1662.57498566,0.00014,2]
[361318036,1747463411073,222.54,0.00025225,120]
[361318069,1747463438222,-56.29046377,0.00014,2]
[361318071,1747463438231,-170.7393119,0.00015237,2]
[361318073,1747463438240,-208.62089014,0.000159,2]
[361318075,1747463438251,-116.93990557,0.000159,2]
[361318077,1747463438259,-927.78,0.00016,2]
[361318079,1747463438268,-10304.16012437,0.000165,2]
[361318080,1747463438277,-3211.08804243,0.00016512,2]
[361318081,1747463438287,-919.0,0.00016612,2]
[361318082,1747463438296,-242.653,0.00016612,2]
[361318083,1747463438615,-585.0,0.00016612,2]
[361318084,1747463438642,-1458.0,0.00016612,2]
[361318086,1747463438653,-553.0,0.00016612,2]
[361318087,1747463438663,-3932.99,0.00016612,2]
[361318088,1747463438672,-154.0,0.00016612,2]
[361318089,1747463438681,-2000.0,0.000167,2]
[361318090,1747463438690,-222.54,0.00016817,2]